[Event "Late-Titled-Tuesday-Blitz-May-07-2024"]
[Site "Chess.com"]
[Date "2024.05.07"]
[Round "4"]
[White "Stanbad1"]
[Black "vugarrasulov"]
[Result "0-1"]
[WhiteElo "2621"]
[BlackElo "2981"]
[TimeControl "180+1"]
[EndTime "14:36:52 PDT"]
[Termination "vugarrasulov won by resignation"]

1. d4 {[%clk 0:03:00.9]} 1... d6 {[%clk 0:02:59.4]} 2. Nc3 {[%clk 0:03:00.6]}
2... e5 {[%clk 0:02:55.5]} 3. dxe5 {[%clk 0:02:59.4]} 3... dxe5 {[%clk
0:02:56.4]} 4. Qxd8+ {[%clk 0:02:59.5]} 4... Kxd8 {[%clk 0:02:57.3]} 5. e4
{[%clk 0:02:59.8]} 5... Be6 {[%clk 0:02:55.9]} 6. Be3 {[%clk 0:02:58.8]} 6...
Nd7 {[%clk 0:02:52.6]} 7. O-O-O {[%clk 0:02:58.5]} 7... a6 {[%clk 0:02:50.4]} 8.
Nge2 {[%clk 0:02:50.3]} 8... Kc8 {[%clk 0:02:45.3]} 9. f3 {[%clk 0:02:47.3]}
9... Ne7 {[%clk 0:02:44.3]} 10. Kb1 {[%clk 0:02:44.1]} 10... Nc6 {[%clk
0:02:44.3]} 11. Nc1 {[%clk 0:02:43.7]} 11... Bc5 {[%clk 0:02:42.9]} 12. Rxd7
{[%clk 0:02:38.5]} 12... Bxe3 {[%clk 0:02:42.1]} 13. Rd1 {[%clk 0:02:38.4]}
13... Rd8 {[%clk 0:02:36.7]} 14. Be2 {[%clk 0:02:37.7]} 14... Nd4 {[%clk
0:02:35.5]} 15. Bd3 {[%clk 0:02:36.4]} 15... c6 {[%clk 0:02:33.5]} 16. Rhe1
{[%clk 0:02:34.1]} 16... Bf4 {[%clk 0:02:34]} 17. h3 {[%clk 0:02:23.4]} 17...
Kc7 {[%clk 0:02:33.3]} 18. N1e2 {[%clk 0:02:21.1]} 18... Bg5 {[%clk 0:02:29]}
19. Nxd4 {[%clk 0:02:20.6]} 19... Rxd4 {[%clk 0:02:28]} 20. Ne2 {[%clk
0:02:20.7]} 20... Rd6 {[%clk 0:02:28.1]} 21. c3 {[%clk 0:02:20.5]} 21... Rad8
{[%clk 0:02:27.1]} 22. Bc2 {[%clk 0:02:20.7]} 22... Rd2 {[%clk 0:02:23.4]} 23.
b3 {[%clk 0:02:16.8]} 23... h5 {[%clk 0:02:22.2]} 24. c4 {[%clk 0:02:15.6]}
24... b5 {[%clk 0:02:21.4]} 25. cxb5 {[%clk 0:02:15.2]} 25... axb5 {[%clk
0:02:22.3]} 26. Kb2 {[%clk 0:02:15.1]} 26... h4 {[%clk 0:02:20.5]} 27. Kc3
{[%clk 0:02:14.8]} 27... Kb6 {[%clk 0:02:19]} 28. a4 {[%clk 0:02:10.9]} 28...
b4+ {[%clk 0:02:13.1]} 29. Kb2 {[%clk 0:02:09.6]} 29... c5 {[%clk 0:02:11.5]}
30. Kb1 {[%clk 0:01:57.9]} 30... c4 {[%clk 0:02:10.2]} 31. Nc1 {[%clk 0:01:55]}
31... Rxg2 {[%clk 0:01:58.5]} 32. Rxd8 {[%clk 0:01:54.7]} 32... Bxd8 {[%clk
0:01:59.4]} 33. bxc4 {[%clk 0:01:54.9]} 33... Bxc4 {[%clk 0:01:57.8]} 34. Bb3
{[%clk 0:01:54.4]} 34... Kc5 {[%clk 0:01:51.2]} 35. Rd1 {[%clk 0:01:52.4]} 35...
Bg5 {[%clk 0:01:49.7]} 36. Nd3+ {[%clk 0:01:49.8]} 36... Bxd3+ {[%clk
0:01:50.1]} 37. Rxd3 {[%clk 0:01:49.3]} 37... Rg1+ {[%clk 0:01:47.8]} 38. Kb2
{[%clk 0:01:48.8]} 38... Rg2+ {[%clk 0:01:47.5]} 39. Kb1 {[%clk 0:01:49]} 39...
Bd2 {[%clk 0:01:40.3]} 40. Rd5+ {[%clk 0:01:47.9]} 40... Kc6 {[%clk 0:01:40.8]}
41. Bc4 {[%clk 0:01:40.7]} 41... Bc3 {[%clk 0:01:36.8]} 42. a5 {[%clk
0:01:39.4]} 42... b3 {[%clk 0:01:30.4]} 43. Rd1 {[%clk 0:01:25.5]} 43... Kc5
{[%clk 0:01:25.9]} 44. Bxf7 {[%clk 0:01:23.1]} 44... Kb4 {[%clk 0:01:26.5]} 45.
a6 {[%clk 0:01:22.4]} 45... Ra2 {[%clk 0:01:23.2]} 0-1

[Event "Late-Titled-Tuesday-Blitz-May-07-2024"]
[Site "Chess.com"]
[Date "2024.05.07"]
[Round "4"]
[White "SergioMoralesG"]
[Black "ReadySkate"]
[Result "0-1"]
[WhiteElo "2474"]
[BlackElo "2703"]
[TimeControl "180+1"]
[EndTime "14:36:54 PDT"]
[Termination "ReadySkate won by resignation"]

1. d4 {[%clk 0:03:00.9]} 1... Nf6 {[%clk 0:02:59.4]} 2. c4 {[%clk 0:03:01.5]}
2... g6 {[%clk 0:02:59.6]} 3. Nc3 {[%clk 0:03:01.1]} 3... d5 {[%clk 0:03:00.1]}
4. Nf3 {[%clk 0:03:01.2]} 4... Bg7 {[%clk 0:02:58.2]} 5. e3 {[%clk 0:03:01.7]}
5... O-O {[%clk 0:02:56.9]} 6. cxd5 {[%clk 0:03:02.2]} 6... Nxd5 {[%clk
0:02:56.9]} 7. Bc4 {[%clk 0:03:02.8]} 7... Nxc3 {[%clk 0:02:57.2]} 8. bxc3
{[%clk 0:03:03.7]} 8... c5 {[%clk 0:02:57.8]} 9. O-O {[%clk 0:03:03.2]} 9... Nc6
{[%clk 0:02:58.4]} 10. h3 {[%clk 0:02:54.7]} 10... Bf5 {[%clk 0:02:57.4]} 11.
Qe2 {[%clk 0:02:51.5]} 11... cxd4 {[%clk 0:02:54.9]} 12. cxd4 {[%clk 0:02:51.1]}
12... Rc8 {[%clk 0:02:55.3]} 13. Rd1 {[%clk 0:02:37.4]} 13... Be4 {[%clk
0:02:54]} 14. Nd2 {[%clk 0:02:32.6]} 14... Bd5 {[%clk 0:02:52.3]} 15. Rb1 {[%clk
0:02:25.4]} 15... Na5 {[%clk 0:02:43.8]} 16. Bxd5 {[%clk 0:02:06.7]} 16... Qxd5
{[%clk 0:02:44.7]} 17. Rb5 {[%clk 0:02:07]} 17... Qxa2 {[%clk 0:02:43.7]} 18.
Bb2 {[%clk 0:02:07.6]} 18... b6 {[%clk 0:02:27.2]} 19. Ra1 {[%clk 0:01:45.8]}
19... Qe6 {[%clk 0:02:25.3]} 20. d5 {[%clk 0:01:45.9]} 20... Qd7 {[%clk
0:02:23.2]} 21. Bxg7 {[%clk 0:01:41.7]} 21... Kxg7 {[%clk 0:02:24.1]} 22. e4
{[%clk 0:01:30.6]} 22... Rc2 {[%clk 0:02:23.2]} 23. Rb4 {[%clk 0:01:21.9]} 23...
Qd6 {[%clk 0:02:18.9]} 24. Qd3 {[%clk 0:00:59.8]} 24... Rfc8 {[%clk 0:02:14.3]}
25. Qd4+ {[%clk 0:00:53.9]} 25... f6 {[%clk 0:02:01.8]} 26. g3 {[%clk
0:00:41.5]} 26... e5 {[%clk 0:01:50.5]} 27. dxe6 {[%clk 0:00:39]} 27... Rxd2
{[%clk 0:01:49.7]} 0-1

[Event "Late-Titled-Tuesday-Blitz-May-07-2024"]
[Site "Chess.com"]
[Date "2024.05.07"]
[Round "4"]
[White "Fins0905"]
[Black "Albertu"]
[Result "1-0"]
[WhiteElo "2742"]
[BlackElo "2549"]
[TimeControl "180+1"]
[EndTime "14:37:03 PDT"]
[Termination "Fins0905 won by resignation"]

1. Nf3 {[%clk 0:03:00.9]} 1... d5 {[%clk 0:02:50.7]} 2. d4 {[%clk 0:03:00.1]}
2... Nf6 {[%clk 0:02:51]} 3. c4 {[%clk 0:03:00.3]} 3... c6 {[%clk 0:02:51.1]} 4.
cxd5 {[%clk 0:03:00]} 4... cxd5 {[%clk 0:02:51.3]} 5. Nc3 {[%clk 0:03:00.6]}
5... Nc6 {[%clk 0:02:51.4]} 6. Bf4 {[%clk 0:03:00.7]} 6... a6 {[%clk 0:02:25.4]}
7. Rc1 {[%clk 0:03:00.3]} 7... e6 {[%clk 0:02:14.9]} 8. e3 {[%clk 0:03:00]} 8...
Be7 {[%clk 0:02:11.3]} 9. Bd3 {[%clk 0:02:56.7]} 9... O-O {[%clk 0:02:11.3]} 10.
h3 {[%clk 0:02:52.3]} 10... Bd7 {[%clk 0:02:05.1]} 11. Ne5 {[%clk 0:02:47.5]}
11... Nxe5 {[%clk 0:01:54.7]} 12. dxe5 {[%clk 0:02:43.5]} 12... Ne8 {[%clk
0:01:54.6]} 13. O-O {[%clk 0:02:41.3]} 13... Bc6 {[%clk 0:01:47.9]} 14. Ne2
{[%clk 0:02:39.5]} 14... Nc7 {[%clk 0:01:43.3]} 15. Nd4 {[%clk 0:02:38.8]} 15...
Be8 {[%clk 0:01:40.3]} 16. Bxh7+ {[%clk 0:02:20.3]} 16... Kxh7 {[%clk
0:01:32.2]} 17. Qc2+ {[%clk 0:02:20.7]} 17... Kg8 {[%clk 0:01:13.5]} 18. Qxc7
{[%clk 0:02:20.4]} 18... a5 {[%clk 0:00:58.7]} 19. b3 {[%clk 0:02:07.1]} 19...
Ba3 {[%clk 0:00:33.5]} 20. Qxd8 {[%clk 0:01:56]} 20... Rxd8 {[%clk 0:00:34.4]}
21. Rc7 {[%clk 0:01:56.3]} 21... Rd7 {[%clk 0:00:34.1]} 22. Rc8 {[%clk
0:01:51.8]} 22... Re7 {[%clk 0:00:32.5]} 23. Nc2 {[%clk 0:01:47.2]} 23... Bb2
{[%clk 0:00:30.8]} 24. Rb1 {[%clk 0:01:45.2]} 24... g5 {[%clk 0:00:20.6]} 25.
Bg3 {[%clk 0:01:39.8]} 1-0

[Event "Late-Titled-Tuesday-Blitz-May-07-2024"]
[Site "Chess.com"]
[Date "2024.05.07"]
[Round "4"]
[White "bascheyaro"]
[Black "masnyszachistaaa"]
[Result "1-0"]
[WhiteElo "2838"]
[BlackElo "2601"]
[TimeControl "180+1"]
[EndTime "14:37:05 PDT"]
[Termination "bascheyaro won by resignation"]

1. d4 {[%clk 0:03:00.9]} 1... Nf6 {[%clk 0:02:51.1]} 2. c4 {[%clk 0:03:01]} 2...
c5 {[%clk 0:02:49.7]} 3. Nf3 {[%clk 0:03:01]} 3... cxd4 {[%clk 0:02:44.1]} 4.
Nxd4 {[%clk 0:03:01.9]} 4... b6 {[%clk 0:02:43.1]} 5. Nc3 {[%clk 0:03:00.7]}
5... Bb7 {[%clk 0:02:43.4]} 6. Nf3 {[%clk 0:03:00.9]} 6... e6 {[%clk 0:02:41.8]}
7. Bg5 {[%clk 0:03:00.6]} 7... Be7 {[%clk 0:02:41.5]} 8. e3 {[%clk 0:03:00.9]}
8... O-O {[%clk 0:02:35.8]} 9. Be2 {[%clk 0:03:01.1]} 9... d5 {[%clk 0:02:34.2]}
10. cxd5 {[%clk 0:03:00.1]} 10... Nxd5 {[%clk 0:02:33.2]} 11. Bxe7 {[%clk
0:03:01]} 11... Qxe7 {[%clk 0:02:33.6]} 12. Nxd5 {[%clk 0:03:00.8]} 12... Bxd5
{[%clk 0:02:34.5]} 13. O-O {[%clk 0:03:01.1]} 13... Nd7 {[%clk 0:02:33.2]} 14.
a3 {[%clk 0:03:00.3]} 14... Rfd8 {[%clk 0:02:31.7]} 15. Rc1 {[%clk 0:02:59.7]}
15... Nc5 {[%clk 0:02:29.3]} 16. Qc2 {[%clk 0:02:48.9]} 16... Rac8 {[%clk
0:02:19.8]} 17. Rfd1 {[%clk 0:02:42.9]} 17... h6 {[%clk 0:02:04.7]} 18. b4
{[%clk 0:02:42.6]} 18... Ne4 {[%clk 0:01:59.5]} 19. Qxc8 {[%clk 0:02:42.7]}
19... Rxc8 {[%clk 0:02:00.4]} 20. Rxc8+ {[%clk 0:02:43]} 20... Kh7 {[%clk
0:02:01.1]} 21. Bd3 {[%clk 0:02:43.1]} 21... g6 {[%clk 0:01:51.6]} 22. Rdc1
{[%clk 0:02:40.7]} 22... Nd6 {[%clk 0:01:42.6]} 23. R8c7 {[%clk 0:02:40.5]}
23... Qf6 {[%clk 0:01:40.2]} 24. Rd7 {[%clk 0:02:30]} 24... Bxf3 {[%clk
0:01:06.1]} 25. gxf3 {[%clk 0:02:28.2]} 25... Qg5+ {[%clk 0:00:37.7]} 26. Kf1
{[%clk 0:02:27.9]} 26... Qd5 {[%clk 0:00:38.4]} 27. Be2 {[%clk 0:02:20.8]} 27...
Qe5 {[%clk 0:00:27.3]} 28. f4 {[%clk 0:02:18.2]} 28... Qe4 {[%clk 0:00:20.4]}
29. Kg1 {[%clk 0:02:08.8]} 29... Nf5 {[%clk 0:00:11.8]} 30. Rxf7+ {[%clk
0:02:08.4]} 30... Kg8 {[%clk 0:00:11.9]} 31. Rxa7 {[%clk 0:02:08.2]} 31... Nd6
{[%clk 0:00:07.9]} 32. Rd1 {[%clk 0:02:05.8]} 32... Ne8 {[%clk 0:00:05]} 33. Rd8
{[%clk 0:02:05.1]} 33... Kf8 {[%clk 0:00:04.9]} 34. Bb5 {[%clk 0:02:00.9]} 34...
Qb1+ {[%clk 0:00:04.7]} 35. Kg2 {[%clk 0:02:00.8]} 35... Qe4+ {[%clk 0:00:05.2]}
36. Kg3 {[%clk 0:02:01.2]} 1-0

[Event "Late-Titled-Tuesday-Blitz-May-07-2024"]
[Site "Chess.com"]
[Date "2024.05.07"]
[Round "4"]
[White "Ditman2007"]
[Black "maximnovik"]
[Result "1-0"]
[WhiteElo "2697"]
[BlackElo "2464"]
[TimeControl "180+1"]
[EndTime "14:37:23 PDT"]
[Termination "Ditman2007 won on time"]

1. e4 {[%clk 0:03:00.9]} 1... e5 {[%clk 0:02:59.7]} 2. Nf3 {[%clk 0:03:00.9]}
2... Nc6 {[%clk 0:03:00.3]} 3. Bb5 {[%clk 0:03:01]} 3... a6 {[%clk 0:03:00.4]}
4. Ba4 {[%clk 0:03:01.2]} 4... Nf6 {[%clk 0:03:00.5]} 5. O-O {[%clk 0:03:00.5]}
5... Be7 {[%clk 0:03:00.2]} 6. Re1 {[%clk 0:02:59.7]} 6... b5 {[%clk 0:03:00.4]}
7. Bb3 {[%clk 0:03:00]} 7... O-O {[%clk 0:03:01.1]} 8. c3 {[%clk 0:02:59.7]}
8... d5 {[%clk 0:03:01.1]} 9. exd5 {[%clk 0:02:57.3]} 9... Nxd5 {[%clk
0:03:01.1]} 10. Nxe5 {[%clk 0:02:57.5]} 10... Nxe5 {[%clk 0:03:01.3]} 11. Rxe5
{[%clk 0:02:58.4]} 11... c6 {[%clk 0:03:02]} 12. Re1 {[%clk 0:02:54]} 12... Bd6
{[%clk 0:02:59.3]} 13. d4 {[%clk 0:02:51]} 13... Qh4 {[%clk 0:02:58.6]} 14. g3
{[%clk 0:02:51.6]} 14... Qh3 {[%clk 0:02:58.7]} 15. Qf3 {[%clk 0:02:51.8]} 15...
Bg4 {[%clk 0:02:55.6]} 16. Qg2 {[%clk 0:02:52]} 16... Qh5 {[%clk 0:02:55.3]} 17.
Nd2 {[%clk 0:02:51.5]} 17... Rae8 {[%clk 0:02:49.6]} 18. Re4 {[%clk 0:02:11.3]}
18... f5 {[%clk 0:01:44]} 19. Rxe8 {[%clk 0:02:07.5]} 19... Rxe8 {[%clk
0:01:43.6]} 20. Bxd5+ {[%clk 0:02:07.6]} 20... cxd5 {[%clk 0:01:43.7]} 21. Qxd5+
{[%clk 0:02:08.5]} 21... Kh8 {[%clk 0:01:43.2]} 22. f3 {[%clk 0:01:35.3]} 22...
Bxg3 {[%clk 0:00:12.7]} 23. hxg3 {[%clk 0:01:31.8]} 23... Qh3 {[%clk 0:00:07.9]}
24. Nf1 {[%clk 0:01:30]} 24... h6 {[%clk 0:00:03.4]} 25. fxg4 {[%clk 0:01:21.5]}
1-0

[Event "Late-Titled-Tuesday-Blitz-May-07-2024"]
[Site "Chess.com"]
[Date "2024.05.07"]
[Round "4"]
[White "Mikhail_Golubev"]
[Black "bancsoo"]
[Result "0-1"]
[WhiteElo "2606"]
[BlackElo "2862"]
[TimeControl "180+1"]
[EndTime "14:37:28 PDT"]
[Termination "bancsoo won by resignation"]

1. e4 {[%clk 0:03:00.9]} 1... e5 {[%clk 0:02:58.9]} 2. Nf3 {[%clk 0:03:00.4]}
2... d6 {[%clk 0:02:58.6]} 3. d4 {[%clk 0:02:59.5]} 3... exd4 {[%clk 0:02:58.5]}
4. Qxd4 {[%clk 0:02:59.6]} 4... Nc6 {[%clk 0:02:57.8]} 5. Bb5 {[%clk 0:02:58.2]}
5... Ne7 {[%clk 0:02:57.8]} 6. Bf4 {[%clk 0:02:50.7]} 6... a6 {[%clk 0:02:55.9]}
7. Bxc6+ {[%clk 0:02:50.6]} 7... Nxc6 {[%clk 0:02:56.8]} 8. Qd2 {[%clk
0:02:50.3]} 8... Be7 {[%clk 0:02:53.9]} 9. Nc3 {[%clk 0:02:49.6]} 9... O-O
{[%clk 0:02:53.9]} 10. O-O-O {[%clk 0:02:48]} 10... Re8 {[%clk 0:02:46.3]} 11.
Nd5 {[%clk 0:02:33.4]} 11... Bf8 {[%clk 0:02:46.2]} 12. Rhe1 {[%clk 0:02:25]}
12... Be6 {[%clk 0:02:35.3]} 13. h3 {[%clk 0:02:16.2]} 13... f6 {[%clk
0:02:30.5]} 14. g4 {[%clk 0:02:14.3]} 14... Qd7 {[%clk 0:02:30]} 15. Nh4 {[%clk
0:02:01]} 15... Ne7 {[%clk 0:02:24.4]} 16. Nxe7+ {[%clk 0:01:45.2]} 16... Qxe7
{[%clk 0:02:23.7]} 17. Nf5 {[%clk 0:01:44.6]} 17... Qf7 {[%clk 0:02:23.5]} 18.
a3 {[%clk 0:01:39.6]} 18... Rad8 {[%clk 0:02:13.8]} 19. Nd4 {[%clk 0:01:17.5]}
19... Bc8 {[%clk 0:02:09.8]} 20. g5 {[%clk 0:01:11.5]} 20... fxg5 {[%clk
0:02:04.2]} 21. Bxg5 {[%clk 0:01:09.4]} 21... Rd7 {[%clk 0:02:04.7]} 22. Nf5
{[%clk 0:01:03.6]} 22... Qa2 {[%clk 0:01:57.5]} 23. Qc3 {[%clk 0:00:48.2]} 23...
Rf7 {[%clk 0:01:38.1]} 24. Nh6+ {[%clk 0:00:33.7]} 24... gxh6 {[%clk 0:01:37.3]}
25. Bf6 {[%clk 0:00:33.5]} 25... Rxf6 {[%clk 0:01:25.5]} 26. Qxf6 {[%clk
0:00:30.9]} 26... Bg7 {[%clk 0:01:23.1]} 27. Rg1 {[%clk 0:00:29.5]} 27... Qf7
{[%clk 0:01:23.6]} 28. Qxh6 {[%clk 0:00:13.2]} 28... Kh8 {[%clk 0:01:23.2]} 29.
Qe3 {[%clk 0:00:11.4]} 29... Qf6 {[%clk 0:01:19.7]} 30. c3 {[%clk 0:00:11.2]}
30... Bh6 {[%clk 0:01:19.5]} 0-1

[Event "Late-Titled-Tuesday-Blitz-May-07-2024"]
[Site "Chess.com"]
[Date "2024.05.07"]
[Round "4"]
[White "ellatambien"]
[Black "semchik90"]
[Result "1-0"]
[WhiteElo "2685"]
[BlackElo "2429"]
[TimeControl "180+1"]
[EndTime "14:37:31 PDT"]
[Termination "ellatambien won by resignation"]

1. Nf3 {[%clk 0:03:00.9]} 1... d5 {[%clk 0:02:59.7]} 2. c4 {[%clk 0:03:00.5]}
2... c6 {[%clk 0:02:59.9]} 3. cxd5 {[%clk 0:03:00.6]} 3... cxd5 {[%clk
0:02:59.8]} 4. d4 {[%clk 0:03:01.5]} 4... Nf6 {[%clk 0:02:59.2]} 5. Nc3 {[%clk
0:03:01.9]} 5... Nc6 {[%clk 0:02:59.2]} 6. Bf4 {[%clk 0:03:02.1]} 6... e6 {[%clk
0:02:59.4]} 7. e3 {[%clk 0:03:01.5]} 7... Bd6 {[%clk 0:03:00]} 8. Bxd6 {[%clk
0:03:01.3]} 8... Qxd6 {[%clk 0:03:00.9]} 9. Bd3 {[%clk 0:03:01.2]} 9... a6
{[%clk 0:03:00.4]} 10. O-O {[%clk 0:03:00.4]} 10... O-O {[%clk 0:03:00.1]} 11.
a3 {[%clk 0:03:00.1]} 11... e5 {[%clk 0:02:58.5]} 12. dxe5 {[%clk 0:02:59.4]}
12... Nxe5 {[%clk 0:02:59.4]} 13. Nxe5 {[%clk 0:02:59.6]} 13... Qxe5 {[%clk
0:03:00]} 14. h3 {[%clk 0:02:50.4]} 14... Be6 {[%clk 0:02:57.5]} 15. Qd2 {[%clk
0:02:48.1]} 15... Qg5 {[%clk 0:02:52.6]} 16. Kh1 {[%clk 0:02:43.5]} 16... d4
{[%clk 0:02:48.1]} 17. Ne4 {[%clk 0:02:38.6]} 17... Nxe4 {[%clk 0:02:44]} 18.
Bxe4 {[%clk 0:02:37.2]} 18... dxe3 {[%clk 0:02:44.1]} 19. Qxe3 {[%clk
0:02:36.6]} 19... Qxe3 {[%clk 0:02:39.6]} 20. fxe3 {[%clk 0:02:37.5]} 20... Rab8
{[%clk 0:02:29.7]} 21. Rfd1 {[%clk 0:02:35.9]} 21... Rfe8 {[%clk 0:02:23.5]} 22.
Bf3 {[%clk 0:02:32.7]} 22... Bb3 {[%clk 0:02:16.6]} 23. Rd3 {[%clk 0:02:30]}
23... Bc4 {[%clk 0:02:12.4]} 24. Rc3 {[%clk 0:02:29.3]} 24... b5 {[%clk
0:02:08]} 25. a4 {[%clk 0:02:25.9]} 25... Rbc8 {[%clk 0:01:59.3]} 26. axb5
{[%clk 0:02:24.4]} 26... Bxb5 {[%clk 0:01:48.6]} 27. Raa3 {[%clk 0:02:21.7]}
27... Rxc3 {[%clk 0:01:39.6]} 28. Rxc3 {[%clk 0:02:22.6]} 28... h6 {[%clk
0:01:33.7]} 29. Kg1 {[%clk 0:02:21.8]} 29... Rd8 {[%clk 0:01:29.4]} 30. Rc2
{[%clk 0:02:17.8]} 30... g6 {[%clk 0:01:22.7]} 31. Kf2 {[%clk 0:02:17.3]} 31...
Rd3 {[%clk 0:01:18.7]} 32. Be4 {[%clk 0:02:15.3]} 32... Rb3 {[%clk 0:01:15.5]}
33. Bd5 {[%clk 0:02:11.3]} 33... Rb4 {[%clk 0:01:13.3]} 34. b3 {[%clk
0:02:06.5]} 34... Bd7 {[%clk 0:01:02.8]} 35. e4 {[%clk 0:02:02.5]} 35... Be6
{[%clk 0:01:00.9]} 36. Ke3 {[%clk 0:01:57]} 36... Bxd5 {[%clk 0:00:58.8]} 37.
exd5 {[%clk 0:01:57.9]} 37... Rxb3+ {[%clk 0:00:59.2]} 38. Kd4 {[%clk
0:01:58.8]} 38... Kf8 {[%clk 0:00:54.2]} 39. Ra2 {[%clk 0:01:58.2]} 39... Rb6
{[%clk 0:00:48.8]} 40. Kc5 {[%clk 0:01:57.8]} 40... Rf6 {[%clk 0:00:49]} 41. d6
{[%clk 0:01:55.6]} 41... a5 {[%clk 0:00:37]} 42. Kc6 {[%clk 0:01:53.4]} 42...
Re6 {[%clk 0:00:29.1]} 43. Rxa5 {[%clk 0:01:49.2]} 43... Re2 {[%clk 0:00:28.2]}
44. Ra8+ {[%clk 0:01:43.9]} 44... Kg7 {[%clk 0:00:28.6]} 45. d7 {[%clk
0:01:42.5]} 45... Rc2+ {[%clk 0:00:26.3]} 46. Kb5 {[%clk 0:01:42.3]} 46... Rb2+
{[%clk 0:00:24.5]} 47. Kc4 {[%clk 0:01:42.3]} 47... Rd2 {[%clk 0:00:24.7]} 48.
d8=Q {[%clk 0:01:41.7]} 48... Rxd8 {[%clk 0:00:25.3]} 49. Rxd8 {[%clk
0:01:41.9]} 1-0

[Event "Late-Titled-Tuesday-Blitz-May-07-2024"]
[Site "Chess.com"]
[Date "2024.05.07"]
[Round "4"]
[White "ChessLover0108"]
[Black "chenxiaoyuer"]
[Result "0-1"]
[WhiteElo "2956"]
[BlackElo "2779"]
[TimeControl "180+1"]
[EndTime "14:37:32 PDT"]
[Termination "chenxiaoyuer won by resignation"]

1. Nf3 {[%clk 0:03:00.9]} 1... Nf6 {[%clk 0:03:00.4]} 2. c4 {[%clk 0:03:01]}
2... g6 {[%clk 0:03:01]} 3. Nc3 {[%clk 0:03:01.7]} 3... Bg7 {[%clk 0:03:01.7]}
4. e4 {[%clk 0:03:02.5]} 4... d6 {[%clk 0:03:02.3]} 5. d4 {[%clk 0:03:03.3]}
5... O-O {[%clk 0:03:02.3]} 6. Be2 {[%clk 0:03:04.1]} 6... e5 {[%clk 0:03:02.8]}
7. O-O {[%clk 0:03:03.8]} 7... exd4 {[%clk 0:03:03.4]} 8. Nxd4 {[%clk
0:03:04.7]} 8... Re8 {[%clk 0:03:04.1]} 9. Bf3 {[%clk 0:03:05.1]} 9... Nbd7
{[%clk 0:03:02.9]} 10. Re1 {[%clk 0:03:02.6]} 10... Ne5 {[%clk 0:03:03.1]} 11.
Be2 {[%clk 0:03:03.4]} 11... Nc6 {[%clk 0:02:58.3]} 12. Nxc6 {[%clk 0:02:44.6]}
12... bxc6 {[%clk 0:02:59.2]} 13. Qc2 {[%clk 0:02:37.1]} 13... Nd7 {[%clk
0:02:56.4]} 14. b3 {[%clk 0:02:32.9]} 14... Nc5 {[%clk 0:02:52.6]} 15. Be3
{[%clk 0:02:10.6]} 15... Ne6 {[%clk 0:02:50.9]} 16. Rad1 {[%clk 0:02:09.2]}
16... c5 {[%clk 0:02:49.2]} 17. Qd2 {[%clk 0:01:48.7]} 17... Nd4 {[%clk
0:02:47.9]} 18. Bd3 {[%clk 0:01:41.7]} 18... Bg4 {[%clk 0:02:41.3]} 19. Rc1
{[%clk 0:01:34.6]} 19... Qd7 {[%clk 0:02:36.3]} 20. Bh6 {[%clk 0:01:20.5]} 20...
Bf3 {[%clk 0:02:22.3]} 21. gxf3 {[%clk 0:01:21.4]} 21... Nxf3+ {[%clk
0:02:21.9]} 22. Kh1 {[%clk 0:01:06.5]} 22... Nxd2 {[%clk 0:02:19.3]} 23. Bxd2
{[%clk 0:01:07.4]} 23... c6 {[%clk 0:02:15.2]} 24. Rcd1 {[%clk 0:01:01.1]} 24...
Qh3 {[%clk 0:02:11.2]} 25. Bf1 {[%clk 0:00:37]} 25... Qf3+ {[%clk 0:02:09.8]}
26. Bg2 {[%clk 0:00:36.9]} 26... Qxf2 {[%clk 0:02:08.4]} 27. Be3 {[%clk
0:00:25.1]} 27... Qf6 {[%clk 0:02:03.7]} 28. Ne2 {[%clk 0:00:23.2]} 28... Rad8
{[%clk 0:01:59.9]} 29. Nf4 {[%clk 0:00:20.5]} 29... Bh6 {[%clk 0:01:57]} 30. Rf1
{[%clk 0:00:20.5]} 30... Qc3 {[%clk 0:01:55.1]} 31. Rf3 {[%clk 0:00:16]} 31...
Qc2 {[%clk 0:01:51.2]} 32. Rd2 {[%clk 0:00:15.3]} 32... Qxe4 {[%clk 0:01:48.4]}
33. Nh5 {[%clk 0:00:08.5]} 33... gxh5 {[%clk 0:01:43.1]} 34. Rg3+ {[%clk
0:00:08.5]} 34... Qg6 {[%clk 0:01:41.2]} 35. Bxh6 {[%clk 0:00:02.1]} 35... Re1+
{[%clk 0:01:40.9]} 36. Bf1 {[%clk 0:00:02.8]} 36... Rxf1+ {[%clk 0:01:41]} 37.
Kg2 {[%clk 0:00:03.7]} 37... Rf6 {[%clk 0:01:40.2]} 38. Be3 {[%clk 0:00:01]}
38... Re8 {[%clk 0:01:39.9]} 39. Rxg6+ {[%clk 0:00:01.3]} 39... Rxg6+ {[%clk
0:01:40.1]} 40. Kf3 {[%clk 0:00:02.2]} 40... Rf6+ {[%clk 0:01:40.5]} 0-1

[Event "Late-Titled-Tuesday-Blitz-May-07-2024"]
[Site "Chess.com"]
[Date "2024.05.07"]
[Round "4"]
[White "Casablanca"]
[Black "Yaacovn"]
[Result "0-1"]
[WhiteElo "2702"]
[BlackElo "2852"]
[TimeControl "180+1"]
[EndTime "14:37:35 PDT"]
[Termination "Yaacovn won by checkmate"]

1. Nf3 {[%clk 0:03:00.9]} 1... Nf6 {[%clk 0:02:44.5]} 2. g3 {[%clk 0:03:00.5]}
2... b6 {[%clk 0:02:44.4]} 3. Bg2 {[%clk 0:03:00.9]} 3... Bb7 {[%clk 0:02:45]}
4. O-O {[%clk 0:03:01.7]} 4... c5 {[%clk 0:02:45.4]} 5. c4 {[%clk 0:03:01.2]}
5... g6 {[%clk 0:02:41.8]} 6. d4 {[%clk 0:03:01.4]} 6... cxd4 {[%clk 0:02:41.2]}
7. Qxd4 {[%clk 0:03:02.3]} 7... Bg7 {[%clk 0:02:40.9]} 8. Nc3 {[%clk 0:03:00.5]}
8... Nc6 {[%clk 0:02:39.2]} 9. Qd2 {[%clk 0:03:00.3]} 9... O-O {[%clk 0:02:38]}
10. Rd1 {[%clk 0:02:57.8]} 10... Rc8 {[%clk 0:02:35]} 11. Qc2 {[%clk 0:02:40.4]}
11... Qe8 {[%clk 0:01:56.8]} 12. Bg5 {[%clk 0:01:52.8]} 12... h6 {[%clk
0:01:56]} 13. Bf4 {[%clk 0:01:53.1]} 13... Na5 {[%clk 0:01:46.1]} 14. b3 {[%clk
0:01:24]} 14... d5 {[%clk 0:01:44.8]} 15. Ne5 {[%clk 0:01:11.7]} 15... dxc4
{[%clk 0:01:29.5]} 16. Bxb7 {[%clk 0:01:12.6]} 16... Nxb7 {[%clk 0:01:29.2]} 17.
Nxc4 {[%clk 0:01:09.8]} 17... b5 {[%clk 0:01:28.9]} 18. Ne5 {[%clk 0:01:01.8]}
18... b4 {[%clk 0:01:23.7]} 19. Qd3 {[%clk 0:00:48.2]} 19... bxc3 {[%clk
0:01:17.1]} 20. Qa6 {[%clk 0:00:48.3]} 20... c2 {[%clk 0:01:08.8]} 21. Re1
{[%clk 0:00:45.7]} 21... Nc5 {[%clk 0:01:07]} 22. Qxa7 {[%clk 0:00:45.6]} 22...
Nd5 {[%clk 0:01:07.3]} 23. Rac1 {[%clk 0:00:44.7]} 23... Nxf4 {[%clk 0:01:02.8]}
24. gxf4 {[%clk 0:00:45.6]} 24... Ne6 {[%clk 0:00:59.4]} 25. Qe3 {[%clk
0:00:44.5]} 25... Bxe5 {[%clk 0:00:56.6]} 26. fxe5 {[%clk 0:00:44.2]} 26... Qc6
{[%clk 0:00:56]} 27. Qxh6 {[%clk 0:00:43.5]} 27... Qe4 {[%clk 0:00:54.4]} 28.
Qh3 {[%clk 0:00:26.5]} 28... Nf4 {[%clk 0:00:49.5]} 29. Qe3 {[%clk 0:00:22.6]}
29... Qg2# {[%clk 0:00:49.1]} 0-1